Cogmind - Beta 12 @@@ ROGUE MODE // 2023.03.31 @ 06:26:51 Player: Savant Result: Destroyed by as-03529 with Assembled Maul Performance ------------- Evolutions (0) 0 Regions Visited (4) 800 Robots Destroyed (0) 0 Value Destroyed (0) 0 Prototype IDs (24) 480 Alien Tech Used (0) 0 Bonus (427) 427 TOTAL SCORE: 1707 Bonus ------- Follower Combat Kills 127 Aligned with FarCom 300 Cogmind --------- Core Integrity 0/250 Matter 294/300 Energy 65/100 System Corruption 5% Temperature Cool (0) Movement Flying (40) Location -9/Mines Parts ------- > --- POWER (1) -------- (None) > --- PROPULSION (2) --- Flight Unit > --- UTILITY (2) ------ Improved Heat Sink > --- WEAPON (2) ------- (None) > --- INVENTORY (5) ---- Light Ion Engine Light Treads Experimental Sensor Array Field Lobotomy Kit (5) Peak State ------------ > --- POWER ------------ (None) > --- PROPULSION ------- Light Treads Light Treads > --- UTILITY ---------- Structural Scanner Experimental Sensor Array > --- WEAPON ----------- Hammer > --- INVENTORY -------- Light Ion Engine Light Nuclear Core Light Treads Flight Unit [Rating: 13] Favorites ----------- Power None Propulsion Light Treads Treads Light Treads Flight Unit Flight Unit Utility Structural Scanner Device Structural Scanner Weapon Hammer Impact Weapon Hammer Build | -11 -10 -10 -10 -9 ------- Run | Jun Mat Min Exi Min Slots Evolved . | . . . . . Power . | . . . . . Propulsion . | . . . . . Utility . | . . . . . Weapon . | . . . . . Parts Attached 13 | 2 . 8 . 3 Power . | . . . . . Engine . | . . . . . Core . | . . . . . Reactor . | . . . . . Propulsion 7 | 2 . 3 . 2 Treads 5 | 2 . 2 . 1 Leg . | . . . . . Wheel . | . . . . . Hover . | . . . . . Flight 2 | . . 1 . 1 Utility 5 | . . 4 . 1 Device 5 | . . 4 . 1 Storage . | . . . . . Processor . | . . . . . Hackware . | . . . . . Protection . | . . . . . Artifact . | . . . . . Weapon 1 | . . 1 . . Energy Gun . | . . . . . Energy Cannon . | . . . . . Ballistic Gun . | . . . . . Ballistic Cannon . | . . . . . Launcher . | . . . . . Special Weapon . | . . . . . Impact Weapon 1 | . . 1 . . Slashing Weapon . | . . . . . Piercing Weapon . | . . . . . Special Melee Weapon . | . . . . . Unidentified Prototypes 1 | . . 1 . . Parts Lost 4 | . . . . 4 Power . | . . . . . Propulsion 2 | . . . . 2 Utility 1 | . . . . 1 Weapon 1 | . . . . 1 Highest Loss Streak 3 | . . . . 3 To Critical Strikes . | . . . . . Average Slot Usage (%) 48 | . 28 48 57 39 Treads 26 | . 28 28 28 17 Device 15 | . . 16 14 15 Impact Weapon 6 | . . 4 14 6 Naked Turns . | . . . . . Heaviest Build 3 | . . 3 3 3 Greatest Support 4 | 3 3 4 3 4 Greatest Overweight (x) . | . . . . . Average Overweight (x) . | . . . . . Largest Inventory Capacity 5 | 5 5 5 5 5 Average Capacity 5 | 5 5 5 5 5 Most Carried 5 | . . 5 5 5 Average Carried 3 | . . 2 4 4 Final Capacity 5 | 5 5 5 5 5 Final Carried 5 | . . 5 5 4 Class Distribution -------------------- 100% | Mutant Dominant Class ---------------- Mutant | -10/Mines Mutant | -10/Exiles Mutant | -9/Mines Resources | -11 -10 -10 -10 -9 ----------- Run | Jun Mat Min Exi Min Matter Collected 309 | 198 . 79 23 9 Remotely . | . . . . . Salvage Created . | . . . . . Parts . | . . . . . Haulers Intercepted . | . . . . . Recyclers Shooed . | . . . . . Parts Field Recycled . | . . . . . Retrieved Matter . | . . . . . Parts Self-Destructed . | . . . . . Prevented . | . . . . . Kills | -11 -10 -10 -10 -9 ------- Run | Jun Mat Min Exi Min Combat Hostiles Destroyed . | . . . . . Classes Destroyed . | . . . . . Best Kill Streak . | . . . . . Combat Bots Only . | . . . . . Max Kills in Single Turn . | . . . . . Gunslinging . | . . . . . Exploded . | . . . . . Melee . | . . . . . Uniques/NPCs Destroyed . | . . . . . Combat | -11 -10 -10 -10 -9 -------- Run | Jun Mat Min Exi Min Damage Taken 828 | . . 355 . 473 Core 257 | . . 111 . 146 Absorbed by Shields . | . . . . . Core Remaining (%) 100 | 100 . . . . Volleys Fired . | . . . . . Largest . | . . . . . Hottest . | . . . . . Shots Fired . | . . . . . Gun . | . . . . . Cannon . | . . . . . Launcher . | . . . . . Special . | . . . . . Kinetic . | . . . . . Thermal . | . . . . . Explosive . | . . . . . Electromagnetic . | . . . . . Robot Hit Streak . | . . . . . Robot Miss Streak . | . . . . . Penetration Max . | . . . . . Secondary Targets . | . . . . . Shots Hit Robots . | . . . . . Core Hits . | . . . . . Critical Kills . | . . . . . Critical Parts Destroyed . | . . . . . Critical Strikes . | . . . . . Melee Attacks 1 | . . 1 . . Impact 1 | . . 1 . . Slashing . | . . . . . Piercing . | . . . . . Sneak Attacks . | . . . . . Combat Hostiles . | . . . . . Follow-up Attacks . | . . . . . Damage Inflicted 4 | . . 4 . . Guns . | . . . . . Cannons . | . . . . . Explosions . | . . . . . Melee . | . . . . . Ramming 4 | . . 4 . . Kinetic . | . . . . . Thermal . | . . . . . Explosive . | . . . . . Electromagnetic . | . . . . . Impact . | . . . . . Slashing . | . . . . . Piercing . | . . . . . Highest Corruption . | . . . . . Average Corruption . | . . . . . Corruption Purged . | . . . . . Corruption Blocked . | . . . . . Overload Shots . | . . . . . Overflow Damage . | . . . . . Projectiles . | . . . . . Explosions . | . . . . . Melee . | . . . . . Knockbacks . | . . . . . Impact . | . . . . . Kinetic . | . . . . . Secondary . | . . . . . Self-Inflicted Damage 2 | . . 2 . . Shots . | . . . . . Rammed 1 | . . 1 . . Targets Rammed 1 | . . 1 . . Kicked . | . . . . . Crushed . | . . . . . Highest Temperature . | . . . . . Average Temperature . | . . . . . Received Heat Transfer 81 | . . 21 . 60 Siege Activations . | . . . . . Robots Corrupted . | . . . . . Combat Hostiles . | . . . . . Parts Fried . | . . . . . Impact Corruptions . | . . . . . Robots Melted . | . . . . . Combat Hostiles . | . . . . . Parts Melted . | . . . . . Heat Transferred . | . . . . . Parts Sabotaged . | . . . . . Parts Stolen . | . . . . . Parts Stripped . | . . . . . Power Chain Reactions . | . . . . . Missiles Intercepted . | . . . . . Alert | -11 -10 -10 -10 -9 ------- Run | Jun Mat Min Exi Min Peak Influence 119 | . . 119 . 30 Initial . | . . . . . Average 55 | . . 73 . 11 Maximum Alert Level . | . . . . . Low Security (%) 100 | 100 100 100 . 100 Level 1 . | . . . . . Level 2 . | . . . . . Level 3 . | . . . . . Level 4 . | . . . . . Level 5 . | . . . . . High Security . | . . . . . Max Security . | . . . . . Squads Dispatched . | . . . . . Investigation . | . . . . . Extermination . | . . . . . Reinforcement . | . . . . . Assault . | . . . . . Garrison . | . . . . . Intercept . | . . . . . Searches Triggered . | . . . . . Construction Impeded . | . . . . . Haulers Reinforced . | . . . . . Active Scanning Responses . | . . . . . Cargo Convoy Interrupts . | . . . . . Stealth | -11 -10 -10 -10 -9 --------- Run | Jun Mat Min Exi Min Distress Signals . | . . . . . Communications Jammed . | . . . . . Distress Signals . | . . . . . Times Spotted 35 | . . 7 . 28 Peak Tracking Total 18 | . . 3 . 18 Tactical Retreats 6 | . . 3 . 3 Traps | -11 -10 -10 -10 -9 ------- Run | Jun Mat Min Exi Min Traps Triggered . | . . . . . Indirectly . | . . . . . Trap Hack Attempts . | . . . . . Triggered . | . . . . . Disarmed . | . . . . . Reprogrammed . | . . . . . Reused . | . . . . . Traps Extracted . | . . . . . Installed . | . . . . . Triggered . | . . . . . Machines | -11 -10 -10 -10 -9 ---------- Run | Jun Mat Min Exi Min Machines Disabled . | . . . . . Max in Single Turn . | . . . . . Machines Repaired . | . . . . . Machines Sabotaged . | . . . . . Overloaded Fab Kills . | . . . . . Hacking | -11 -10 -10 -10 -9 --------- Run | Jun Mat Min Exi Min Machines Accessed 2 | . . . 1 1 Terminals 1 | . . . . 1 Fabricators . | . . . . . Repair Stations . | . . . . . Recycling Units . | . . . . . Scanalyzers . | . . . . . Garrison Access . | . . . . . Total Hacks 4 | . . . 1 3 Successful 2 | . . . 1 1 Failed 2 | . . . . 2 Catastrophic 2 | . . . . 2 Database Lockouts . | . . . . . Manual 4 | . . . 1 3 Terminals 3 | . . . . 3 Fabricators . | . . . . . Repair Stations . | . . . . . Recycling Units . | . . . . . Scanalyzers . | . . . . . Garrison Access . | . . . . . Terminal Hacks 2 | . . . 1 1 Level Access Points 1 | . . . . 1 EX-Prototype ID Bank 1 | . . . 1 . Fabricator Hacks . | . . . . . Repair Station Hacks . | . . . . . Recycling Unit Hacks . | . . . . . Scanalyzer . | . . . . . Garrison Access Hacks . | . . . . . Unauthorized Hacks . | . . . . . Terminals . | . . . . . Fabricators . | . . . . . Repair Stations . | . . . . . Recycling Units . | . . . . . Scanalyzers . | . . . . . Garrison Access . | . . . . . Data Cores Recovered . | . . . . . Used . | . . . . . Hacking Detections 1 | . . . . 1 Full Trace Events . | . . . . . Feedback Events . | . . . . . Feedback Blocked . | . . . . . Robot Schematics Acquired . | . . . . . Robots Built . | . . . . . Authchips . | . . . . . Time . | . . . . . Total Robot Build Rating . | . . . . . Part Schematics Acquired . | . . . . . Parts Built . | . . . . . Authchips . | . . . . . Time . | . . . . . Total Part Build Rating . | . . . . . Parts Repaired . | . . . . . Time . | . . . . . Parts Recycled . | . . . . . Recycled Matter . | . . . . . Retrieved Matter . | . . . . . Retrieved Components . | . . . . . Parts Scanalyzed . | . . . . . Part Schematics Acquired . | . . . . . Parts Damaged . | . . . . . Bothacking | -11 -10 -10 -10 -9 ------------ Run | Jun Mat Min Exi Min Used RIF Installer . | . . . . . Robots Hacked . | . . . . . Non-combat . | . . . . . Combat . | . . . . . Robot Hacks Applied . | . . . . . Relay Couplers Released . | . . . . . Fabnet Peak Effective % . | . . . . . Robots Rewired . | . . . . . Allies Hacked . | . . . . . Hacks Repelled . | . . . . . Allies | -11 -10 -10 -10 -9 -------- Run | Jun Mat Min Exi Min Total Allies 3 | . . 3 . . Largest Group 3 | . . 3 . . Highest-Rated Group 40 | . . 40 . . Highest-Rated Ally 16 | . . 16 . . Total Orders . | . . . . . Ally Attacks 34 | . . 34 . . Total Damage 377 | . . 377 . . Kills 5 | . . 5 . . Allies Corrupted . | . . . . . Allies Melted . | . . . . . Intel | -11 -10 -10 -10 -9 ------- Run | Jun Mat Min Exi Min Robot Analysis Total . | . . . . . Derelict Logs Recovered 3 | . . 1 . 2 Drone Launches . | . . . . . Drone Recoveries . | . . . . . Exploration | -11 -10 -10 -10 -9 ------------- Run | Jun Mat Min Exi Min Turns Passed 597 | 15 4 347 113 118 Spaces Moved 1009 | 25 8 574 223 179 Core 999 | 25 8 569 223 174 Treads . | . . . . . Legs . | . . . . . Wheels . | . . . . . Hover . | . . . . . Flight 10 | . . 5 . 5 Fastest Speed 40 | 50 50 50 50 40 Average Speed 50 | 50 50 50 50 49 Slowest Speed 60 | 50 50 60 50 50 Overloaded Moves . | . . . . . Propulsion Burnouts . | . . . . . Robots Hopped 4 | . . 1 . 3 Cave-ins Triggered . | . . . . . Exploration Rate (%) 40 | 4 3 96 60 40 Regions Visited 4 Branch Regions 3 Pre-discovered Areas 1 | . . . . 1 Known Exits Taken . | . . . . . Unknown Exits Taken 4 | 1 1 1 1 . Scrap Searched 3 | . . 3 . . Spaces Dug 1 | . . 1 . . Terrain Destroyed 1 | . . 1 . . Melee 1 | . . 1 . . Projectile . | . . . . . AOE . | . . . . . Terrain Rammed . | . . . . . Walls Destroyed . | . . . . . Machines Disabled . | . . . . . Actions | -11 -10 -10 -10 -9 --------- Run | Jun Mat Min Exi Min Total 1091 | 26 7 629 224 205 Wait 63 | . . 38 . 25 Move 998 | 24 7 571 222 174 Hop 3 | . . 1 . 2 Pick Up 6 | . . 5 1 . Fast Attach 7 | 2 . 4 . 1 Attach 3 | . . 1 . 2 Detach 2 | . . 1 . 1 Swap 3 | . . 3 . . Drop 4 | . . 3 1 . Fire . | . . . . . Melee 1 | . . 1 . . Ram 1 | . . 1 . . Kick . | . . . . . Crush . | . . . . . Escape Stasis . | . . . . . Rewire . | . . . . . Trap . | . . . . . Miscellaneous . | . . . . . Route ------- -11/Junkyard -10/Materials -10/Mines (discovered 3 exits: [*Mat x2] / *Exi) -10/Exiles -9/Mines (discovered 2 exits: Mat x2) History --------- Turn | Location | Event 10 | -11/Junkyard | Discovered new exit (range 14) 16 | -11/Junkyard | Entered Materials 16 | -10/Materials | Discovered new exit (range 7) 20 | -10/Materials | Entered Mines 34 | -10/Mines | Assisted by bots powering up and referring to "LRC-V3" 100 | -10/Mines | Discovered new exit (range 12) 164 | -10/Mines | Discovered new exit (range 7) 172 | -10/Mines | Learned location of 1 exit from Materials 180 | -10/Mines | Found a damaged Exp. Sensor Array with a note attached 181 | -10/Mines | Found Prototype Device 317 | -10/Mines | Identified Exp. Sensor Array 352 | -10/Mines | Build established: Mutant 365 | -10/Mines | Deemed a non-threat by the Exiles lab entrance 365 | -10/Mines | Discovered new exit (range 5) 367 | -10/Mines | Entered Exiles 381 | -10/Exiles | Met 8R-AWN 389 | -10/Exiles | Met EX-HEX 402 | -10/Exiles | Met EX-BIN 408 | -10/Exiles | Aligned with FarCom system 409 | -10/Exiles | Given EX-Vault access code 420 | -10/Exiles | Opened EX-Vault 424 | -10/Exiles | Found Field Lobotomy Kit 435 | -10/Exiles | Warned to stay clear of 0b10 Research branches 450 | -10/Exiles | Met EX-DEC 475 | -10/Exiles | Discovered new exit (range 14) 480 | -10/Exiles | Left Exiles lab with Field Lobotomy Kit 480 | -10/Exiles | Entered Mines 481 | -9/Mines | Assembled infested the area 486 | -9/Mines | Assisted by a Guerilla fighting off Assembled 490 | -9/Mines | Learned location of Recycling (-9) 516 | -9/Mines | Core integrity fell below 50% 542 | -9/Mines | Learned 2 Materials zone layouts 554 | -9/Mines | Identified exit to Materials 562 | -9/Mines | Lost 3 parts (2n1w) 595 | -9/Mines | Core integrity fell below 20% 598 | -9/Mines | Destroyed by as-03529 with Assembled Maul Last Messages --------------- 00516_ Lgt. Treads destroyed. 00521_ T-07 Excavator destroyed. 00531_ Hammer destroyed. 00542_ Acquired derelict log, extracted data. Data stored: Materials zone layouts (x2). 00552_ T-07 Excavator is excavating. 00554_ Connecting with Terminal... 00554_ Current location identified: Mines >>Access(Main) Found 2 level access points to Materials: (54,50) (49,8) Map updated. 00556_ T-07 Excavator is excavating. 00557_ as-65817 suffers critical hit (Burn). 00560_ T-07 Excavator is excavating. 00589_ Acquired Imp. Heat Sink. 00593_ Acquired 9 matter. 00598_ Structural Scanner destroyed. 00598_ System corrupted by crushing effect (+5). Map ----- +----------------------------------------------------+ | ?????????????????????????????????????????????????? | | ?????????????????????????????????????????????????? | | ?????????????????????????????????????????????????? | | ?????????????????????????????????????????????????? | | ?????????????????????????????????????????????????? | | ?????????????????????????????????????????????????? | | ???????????? ???????????????????????????????????? | | ######?? ????????????????????????????????????? | | ##### ##??????????????????????????????????????? | | % ###??????????????????????????????????????? | | ###????????????? ??????????????????????? | | ### ###???????????? ??????????????????????? | | ########???????????? ??????????????????????? | | #########??????????# ??????????????????????? | | ### ####????????### ??????????????????????? | | ###????????### ??????????????????????? | | ##????????## ??????????????????????? | | ##???????? #?????????????????????? | | ###??????????? ##?????????????????????? | | # ####???????????? ##????????